fUSD/lending_fUSD_20260214
["ID","MTS","AMOUNT","RATE_DAILY","PERIOD"]
[405349235,1771042240339,-151.0,0.00018,2]
[405349236,1771042240348,-1221.216415,0.00018,2]
[405349237,1771042240358,-1221.216415,0.00018,2]
[405349238,1771042240368,-151.0,0.00018,2]
[405349239,1771042240378,-1221.216415,0.00018,2]
[405349240,1771042240387,-151.0,0.00018,2]
[405349241,1771042240397,-286.457156,0.00018,2]
[405349242,1771042240407,-1221.216415,0.00018,2]
[405349244,1771042240417,-1221.216415,0.00018,2]
[405349246,1771042240426,-1221.216415,0.00018,2]
[405349247,1771042240435,-1049.0236881,0.00018,2]
[405349248,1771042240445,-1000.0,0.00018,2]
[405349249,1771042240454,-1000.0,0.00018,2]
[405349250,1771042240463,-1000.0,0.00018,2]
[405349251,1771042240472,-1000.0,0.00018,2]
[405349252,1771042240482,-1000.0,0.00018,2]
[405349253,1771042240491,-1000.0,0.00018,2]
[405349254,1771042240500,-1000.0,0.00018,2]
[405349256,1771042240509,-1000.0,0.00018,2]
[405349258,1771042240518,-1000.0,0.00018,2]
[405349259,1771042240528,-1000.0,0.00018,2]
[405349260,1771042240537,-1000.0,0.00018,2]
[405349261,1771042240545,-1000.0,0.00018,2]
[405349262,1771042240555,-1000.0,0.00018,2]
[405349263,1771042240564,-443.173143,0.00018,2]
[405349264,1771042240573,-200.0,0.00018,2]
[405349265,1771042240582,-1288.76478,0.00018,2]
[405349266,1771042240591,-1288.76478,0.00018,2]
[405349267,1771042240601,-1288.76478,0.00018,2]
[405349268,1771042240610,-1288.76478,0.00018,2]
[405349269,1771042240620,-1288.76478,0.00018,2]
[405349270,1771042240630,-1288.76478,0.00018,2]
[405349271,1771042240639,-1288.76478,0.00018,2]
[405349272,1771042240649,-1288.76478,0.00018,2]
[405349273,1771042240659,-1507.0,0.00018,2]
[405349274,1771042240668,-1507.0,0.00018,2]
[405349275,1771042240678,-153.0,0.00018,2]
[405349276,1771042240687,-1507.0,0.00018,2]
[405349277,1771042240697,-152.0,0.00018,2]
[405349278,1771042240706,-153.0,0.00018,2]
[405349279,1771042240717,-152.0,0.00018,2]
[405349280,1771042240727,-1507.0,0.00018,2]
[405349281,1771042240737,-153.0,0.00018,2]
[405349282,1771042240747,-159.0,0.00018,2]
[405349283,1771042240757,-1507.0,0.00018,2]
[405349284,1771042240767,-152.0,0.00018,2]
[405349285,1771042240776,-153.0,0.00018,2]
[405349286,1771042240785,-1507.0,0.00018,2]
[405349287,1771042240794,-152.0,0.00018,2]
[405349288,1771042240803,-153.0,0.00018,2]
[405349289,1771042240815,-1507.0,0.00018,2]
[405349290,1771042240824,-152.0,0.00018,2]
[405349291,1771042240834,-1507.0,0.00018,2]
[405349292,1771042240843,-152.0,0.00018,2]
[405349293,1771042240852,-1524.09759195,0.00018,2]
[405349294,1771042240864,-363.26616798,0.00018,2]
[405349295,1771042240873,-579.02,0.00018002,2]
[405349296,1771042240883,-155.0,0.00018037,2]
[405349297,1771042240892,-350.0,0.00018058,2]
[405349298,1771042240903,-1680.0,0.00018071,2]
[405349299,1771042240913,-150.0,0.00018073,2]
[405349300,1771042240923,-249.0,0.00018077,2]
[405349301,1771042240931,-1000.0,0.00018189,2]
[405349302,1771042240940,-1072.34099,0.000182,2]
[405349303,1771042240949,-1072.34099,0.000184,2]
[405349304,1771042240958,-302.0,0.000184,2]
[405349305,1771042240967,-168.0,0.00018423,2]
[405349306,1771042240977,-420.0,0.00018459,2]
[405349307,1771042240986,-151.0,0.000185,2]
[405349308,1771042240995,-166.66,0.00018563,2]
[405349309,1771042241004,-152.0,0.00018587,3]
[405349310,1771042241013,-1072.34099,0.000186,2]
[405349311,1771042241023,-19016.38602106,0.00018634,2]
[405349325,1771042244616,-272.9511378,0.00018634,2]
[405349354,1771042246000,-616.0,0.000184,2]
[405349355,1771042246011,-861.92874575,0.00018634,2]
[405349378,1771042293407,517.00726022,8.915e-05,2]
[405349379,1771042323909,500.66008095,8.915e-05,2]
[405349380,1771042329063,501.98778002,8.915e-05,2]
[405349381,1771042330091,500.82539329,8.915e-05,2]
[405349382,1771042330650,501.34796927,8.915e-05,2]
[405349383,1771042332377,3386.0,0.0002,30]
[405349384,1771042332448,511.58807676,8.915e-05,2]
[405349385,1771042333421,500.0,8.915e-05,2]
[405349386,1771042333998,500.74180219,8.915e-05,2]
[405349390,1771042520582,500.46213538,8.915e-05,2]
[405349391,1771042521241,500.0,8.915e-05,2]
[405349392,1771042521674,500.0,8.915e-05,2]
[405349393,1771042583881,162.78976159,8.915e-05,2]
[405349394,1771042590326,170.64577858,8.915e-05,2]
[405349396,1771043192424,500.0,8.915e-05,2]
[405349397,1771043192467,262.27873475,9.463e-05,2]
[405349414,1771043431977,-158.39,0.00013476,2]
[405349415,1771043431987,-165.85534015,0.00014723,2]
[405349416,1771043431998,-300.0,0.00014822,2]
[405349417,1771043432007,-133.35196996,0.00014823,2]
[405349418,1771043432019,-616.38608097,0.00014823,2]
[405349419,1771043432034,-118.26194907,0.00014823,2]
[405349420,1771043432044,-300.0,0.00014823,2]
[405349421,1771043432054,-300.0,0.00014823,2]
[405349422,1771043432063,-177.60666679,0.00014823,2]
[405349423,1771043432079,-1022.39333321,0.00014823,2]
[405349424,1771043432089,-516.51525628,0.00014824,2]
[405349425,1771043432098,-300.0,0.00014824,2]
[405349426,1771043432108,-1063.29674941,0.00014824,2]
[405349427,1771043432117,-842.37,0.00015427,2]
[405349428,1771043432128,-166.66,0.00015827,2]
[405349429,1771043432138,-161.47,0.00015854,2]
[405349430,1771043432148,-165.85534015,0.00015899,2]
[405349431,1771043432158,-1000.0,0.00015926,2]
[405349432,1771043432168,-500.0,0.00015989,2]
[405349433,1771043432178,-300.0,0.00015998,2]
[405349434,1771043432187,-203.94,0.00015999,2]
[405349435,1771043432196,-1439.63,0.00015999,2]
[405349436,1771043432207,-311.39,0.00015999,2]
[405349437,1771043432218,-14629.91,0.00015999,2]
[405349438,1771043432228,-4999.99,0.00015999,2]
[405349439,1771043432238,-349.52,0.00015999,2]
[405349440,1771043432247,-4119.19,0.00015999,2]
[405349441,1771043432258,-570.1,0.00015999,2]
[405349443,1771043432268,-9999.99,0.00015999,2]
[405349444,1771043432277,-150.99,0.00015999,2]
[405349445,1771043432287,-9999.99,0.00015999,2]
[405349446,1771043432297,-1184.5,0.00015999,2]
[405349447,1771043432306,-499.99,0.00015999,2]
[405349448,1771043432316,-150.99,0.00015999,2]
[405349449,1771043432326,-590.46,0.00015999,2]
[405349450,1771043432336,-442.7275461,0.000161,2]
[405349451,1771043432345,-469.78914522,0.000161,2]
[405349452,1771043432355,-5908.99621165,0.000161,2]
[405349453,1771043432364,-1456.88635725,0.000161,2]
[405349454,1771043432375,-275.38,0.00016132,2]
[405349455,1771043432385,-203.17597357,0.00016151,2]
[405349456,1771043432394,-151.0,0.00016158,2]
[405349457,1771043432404,-579.85,0.00016161,2]
[405349458,1771043432414,-164882.2230926,0.00016161,2]
[405349459,1771043432426,-278214.15318299,0.00016161,2]
[405349460,1771043432437,-7571.83421802,0.00016161,2]
[405349463,1771043438018,-478.62468269,0.00016161,2]
[405349464,1771043438028,-654.0578646,0.00016161,2]
[405349465,1771043438040,-46407.66255985,0.00016161,2]
[405349466,1771043438290,-1126217.69058194,0.00016161,2]
[405349467,1771043438300,-5098.5552238,0.000162,5]
[405349468,1771043438309,-420.0,0.00016225,2]
[405349469,1771043438319,-337.0,0.00016225,2]
[405349470,1771043438328,-18667.04,0.00016261,2]
[405349471,1771043438337,-999.99,0.00016261,2]
[405349472,1771043438347,-590.46,0.00016273,2]
[405349473,1771043438357,-5908.99621165,0.000163,2]
[405349474,1771043438367,-1680.0,0.00016305,2]
[405349475,1771043438376,-166.66,0.00016481,2]
[405349476,1771043438385,-5908.99621165,0.000165,2]
[405349477,1771043438395,-2500.0,0.00016511,2]
[405349479,1771043438405,-4926.5975,0.00016511,2]
[405349481,1771043438414,-590.46,0.00016547,2]
[405349483,1771043438424,-200.0,0.00016601,2]
[405349485,1771043438433,-217.17970298,0.00016601,2]
[405349487,1771043438443,-500.0,0.00016601,2]
[405349489,1771043438452,-500.0,0.00016601,2]
[405349490,1771043438461,-500.0,0.00016601,2]
[405349493,1771043438471,-500.0,0.00016601,2]
[405349494,1771043438481,-500.0,0.00016601,2]
[405349496,1771043438490,-500.0,0.00016601,2]
[405349498,1771043438500,-500.0,0.00016601,2]
[405349500,1771043438508,-500.0,0.00016601,2]
[405349502,1771043438517,-500.0,0.00016601,2]
[405349504,1771043438527,-500.0,0.00016601,2]
[405349506,1771043438537,-151.0,0.00016601,2]
[405349508,1771043438547,-500.0,0.00016601,2]
[405349510,1771043438556,-500.0,0.00016601,2]
[405349512,1771043438566,-151.0,0.00016601,2]
[405349513,1771043438575,-500.0,0.00016601,2]
[405349515,1771043438584,-500.0,0.00016601,2]
[405349516,1771043438594,-151.0,0.00016601,2]
[405349517,1771043438604,-500.0,0.00016601,2]
[405349518,1771043438613,-500.0,0.00016601,2]
[405349519,1771043438623,-151.0,0.00016601,2]
[405349520,1771043438633,-500.0,0.00016601,2]
[405349521,1771043438643,-500.0,0.00016601,2]
[405349522,1771043438652,-151.0,0.00016601,2]
[405349523,1771043438661,-521.39069403,0.00016601,2]
[405349524,1771043438671,-500.0,0.00016601,2]
[405349525,1771043438680,-151.0,0.00016601,2]
[405349526,1771043438690,-500.0,0.00016601,2]
[405349527,1771043438699,-151.0,0.00016601,2]
[405349528,1771043438709,-527.2622972,0.00016601,2]
[405349529,1771043438719,-151.0,0.00016601,2]
[405349530,1771043438728,-151.0,0.00016601,2]
[405349531,1771043438738,-151.0,0.00016601,2]
[405349532,1771043438747,-151.0,0.00016601,2]
[405349533,1771043438757,-151.0,0.00016601,2]
[405349534,1771043438767,-151.0,0.00016601,2]
[405349535,1771043438777,-151.0,0.00016601,2]
[405349536,1771043438788,-151.0,0.00016601,2]
[405349537,1771043438797,-151.0,0.00016601,2]
[405349538,1771043438807,-151.0,0.00016601,2]
[405349539,1771043438817,-151.0,0.00016601,2]
[405349540,1771043438826,-151.0,0.00016601,2]
[405349541,1771043438836,-153.80441819,0.00016601,2]
[405349542,1771043438846,-151.0,0.00016601,2]
[405349543,1771043438856,-151.0,0.00016601,2]
[405349544,1771043438866,-151.0,0.00016601,2]
[405349545,1771043438877,-151.0,0.00016601,2]
[405349546,1771043438887,-151.0,0.00016601,2]
[405349547,1771043438897,-151.0,0.00016601,2]
[405349548,1771043438907,-151.0,0.00016601,2]
[405349549,1771043438916,-151.0,0.00016601,2]
[405349550,1771043438926,-151.0,0.00016601,2]
[405349551,1771043438937,-151.0,0.00016601,2]
[405349552,1771043438947,-181.46341101,0.00016601,2]
[405349553,1771043438957,-1219.913,0.00016609,2]
[405349554,1771043438967,-1000.0,0.0001661,2]
[405349555,1771043438977,-1505.94,0.0001661,2]
[405349556,1771043438987,-1505.94,0.0001661,2]
[405349557,1771043438997,-1505.94,0.0001661,2]
[405349558,1771043439007,-1505.94,0.0001661,2]
[405349559,1771043439016,-1505.94,0.0001661,2]
[405349560,1771043439026,-1505.94,0.0001661,2]
[405349561,1771043439036,-5908.99621165,0.000167,2]
[405349562,1771043439046,-500.0,0.0001671,2]
[405349563,1771043439055,-9494.5572,0.00016711,2]
[405349564,1771043439065,-1505.94,0.00016809,2]
[405349565,1771043439075,-505.994553,0.0001681,2]
[405349566,1771043439084,-500.0,0.0001681,2]
[405349567,1771043439093,-500.0,0.0001681,2]
[405349568,1771043439103,-500.0,0.0001681,2]
[405349569,1771043439112,-500.0,0.0001681,2]
[405349570,1771043439122,-301.6781247,0.0001681,2]
[405349571,1771043439132,-535.66713646,0.0001681,2]
[405349572,1771043439141,-590.46,0.00016821,2]
[405349573,1771043439150,-158.39,0.00016845,2]
[405349574,1771043439160,-394.0,0.0001685,2]
[405349575,1771043439169,-203.94,0.00016887,2]
[405349576,1771043439178,-5908.99621165,0.000169,2]
[405349577,1771043439188,-161.47,0.00016911,2]
[405349578,1771043439197,-18915.75419942,0.00017,2]
[405349579,1771043439208,-1000.0,0.00017012,2]
[405349580,1771043439218,-466.0,0.00017044,2]
[405349581,1771043439227,-590.46,0.00017095,2]
[405349582,1771043439237,-5908.99621165,0.000171,2]
[405349583,1771043439248,-206.64,0.0001713,2]
[405349584,1771043439258,-166.66,0.00017134,2]
[405349585,1771043439267,-282.8032417,0.00017149,2]
[405349586,1771043439278,-250.0,0.00017184,2]
[405349587,1771043439289,-250.0,0.00017184,2]
[405349588,1771043439298,-250.0,0.00017184,2]
[405349589,1771043439307,-250.0,0.00017184,2]
[405349590,1771043439316,-356.0,0.00017184,2]
[405349591,1771043439326,-236.0,0.00017218,2]
[405349592,1771043439335,-279.0,0.00017242,2]
[405349593,1771043439344,-150.0,0.00017294,2]
[405349594,1771043439353,-5908.99621165,0.000173,2]
[405349595,1771043439363,-250.0,0.00017342,2]
[405349596,1771043439372,-250.0,0.00017342,2]
[405349597,1771043439381,-313.0,0.00017342,2]
[405349598,1771043439390,-842.37,0.00017356,2]
[405349599,1771043439399,-1288.0,0.00017361,2]
[405349600,1771043439409,-3497.393,0.00017361,2]
[405349601,1771043439418,-590.47399949,0.00017368,2]
[405349602,1771043439427,-5058.83057599,0.00017399,2]
[405349603,1771043439436,-250.36727373,0.00017399,2]
[405349604,1771043439445,-1456.88635723,0.0001742,2]
[405349605,1771043439454,-186.0,0.0001744,2]
[405349606,1771043439464,-151.0,0.00017495,2]
[405349607,1771043439474,-300.0,0.00017497,2]
[405349608,1771043439483,-250.0,0.000175,2]
[405349609,1771043439492,-292.0,0.000175,2]
[405349610,1771043439502,-5908.99621165,0.000175,2]
[405349611,1771043439511,-51494.38,0.00017553,2]
[405349612,1771043439522,-157.0,0.00017585,2]
[405349613,1771043439531,-1000.0,0.00017599,2]
[405349614,1771043439541,-783.98632119,0.000177,2]
[405349615,1771043439550,-5908.99621165,0.000177,2]
[405349616,1771043439559,-587.0,0.00017761,2]
[405349617,1771043439569,-203.94,0.00017776,2]
[405349618,1771043439580,-166.66,0.00017787,2]
[405349619,1771043439590,-2351.79296657,0.00017811,2]
[405349620,1771043439599,-16955.37461987,0.00017811,2]
[405349621,1771043439609,-1003.68191037,0.0001786,2]
[405349622,1771043439618,-1515.97332407,0.000179,2]
[405349623,1771043439628,-1700.52135298,0.000179,2]
[405349624,1771043439639,-6524.53520195,0.000179,2]
[405349625,1771043439650,-5908.99621165,0.000179,2]
[405349626,1771043439661,-1000.0,0.00017916,2]
[405349627,1771043439674,-2351.0,0.00017935,2]
[405349628,1771043439686,-161.47,0.00017968,2]
[405349629,1771043439695,-151.0,0.00017997,2]
[405349630,1771043439705,-500.0,0.00017999,2]
[405349631,1771043439717,-500.0,0.00017999,3]
[405349632,1771043439727,-500.0,0.00017999,4]
[405349633,1771043439737,-500.0,0.00017999,5]
[405349634,1771043439746,-500.0,0.00017999,6]
[405349635,1771043439757,-500.0,0.00017999,7]
[405349636,1771043439766,-500.0,0.00017999,8]
[405349637,1771043439776,-500.0,0.00017999,9]
[405349638,1771043439786,-300.0,0.00017999,2]
[405349639,1771043439795,-671.98455564,0.00017999,2]
[405349640,1771043439804,-642.82454239,0.00018,2]
[405349641,1771043439813,-95206.58790035,0.00018,2]
[405349642,1771043440389,-619.177,0.00017361,2]
[405349643,1771043440398,-188.261462,0.00018,2]
[405349728,1771043445985,-500.0,0.00016511,2]
[405349729,1771043445995,-500.0,0.00016785,2]
[405349730,1771043446004,-386.207,0.00017398,2]
[405349731,1771043446318,-2113.793,0.00017398,2]
[405349732,1771043446328,-11342.29888786,0.00018,2]
[405349737,1771044337821,-3000.0,0.00025,60]
[405349738,1771044398134,-166.04249038,0.00016111,2]
[405349741,1771044632141,-3240.0,0.00016411,2]
[405349742,1771044632151,-173.43456991,0.00016761,2]
[405349743,1771044632161,-500.0,0.00016803,2]
[405349744,1771044632171,-971.25757152,0.00016898,2]
[405349745,1771044632180,-428.02964214,0.00016898,2]
[405349746,1771044632190,-203.17597358,0.00016988,2]
[405349747,1771044632200,-300.0,0.00016996,2]
[405349748,1771044632210,-551.0,0.00016996,2]
[405349749,1771044632219,-269.0,0.00016997,2]
[405349750,1771044632229,-1221.11687672,0.00016997,2]
[405349751,1771044632239,-313.19276348,0.00016997,2]
[405349752,1771044632249,-72472.2666786,0.00016998,2]
[405349753,1771044632264,-33356.90138182,0.00016998,2]
[405349754,1771044632275,-29512.8196345,0.00016998,2]
[405349755,1771044632286,-37256.13708889,0.00016998,2]
[405349756,1771044632298,-1254.41808677,0.00016998,2]
[405349757,1771044632313,-1884.6861441,0.00016998,2]
[405349763,1771044638195,-806.1481227,0.00016998,2]
[405349764,1771044638411,-747.09564,0.00016998,2]
[405349767,1771044640376,-597.032921,0.00016998,2]
[405349772,1771044644015,-0.16621043,0.00016998,2]
[405349773,1771044644026,-634.43867938,0.00016998,2]
[405349775,1771044646054,-1956.26048654,0.00016998,2]
[405349776,1771044646110,-1000.0,0.00016998,2]
[405349777,1771044646122,-378.41384584,0.00016998,2]
[405349778,1771044646133,-4996.1,0.00016998,2]
[405349779,1771044646167,-5826.95487582,0.00016998,2]
[405349780,1771044646278,-523.58143273,0.00016998,2]
[405349798,1771045367918,158.13,0.00011177,2]
[405349800,1771045651183,158.39,0.00012678,2]
[405349802,1771045832248,-918.949,0.00013428,2]
[405349803,1771045832348,-982.681,0.00013428,2]
[405349804,1771045832359,-195.06764086,0.00014771,2]
[405349805,1771045832369,-247.04,0.00015712,2]
[405349806,1771045832378,-166.66,0.00015762,2]
[405349807,1771045832388,-150.0,0.00015904,2]
[405349808,1771045832398,-158.13,0.00015967,2]
[405349809,1771045832409,-220.3,0.00015969,2]
[405349810,1771045832418,-166.66,0.00016094,2]
[405349811,1771045832428,-200.0,0.00016323,2]
[405349812,1771045832439,-166.66,0.00016426,2]
[405349813,1771045832449,-247.04,0.00016498,2]
[405349814,1771045832459,-4905.11396243,0.00016523,2]
[405349815,1771045832471,-2000.0,0.00016523,2]
[405349816,1771045832484,-319.97289599,0.00016523,2]
[405349817,1771045832508,-416.09844174,0.00016523,2]
[405349818,1771045832531,-1014.02545008,0.00016523,2]
[405349819,1771045832547,-3299.19047769,0.00016523,2]
[405349820,1771045832566,-20265.83952201,0.00016523,2]
[405349821,1771045832576,-300.0,0.00016532,2]
[405349823,1771045832585,-1200.0,0.00016532,2]
[405349825,1771045832594,-67197.9955,0.00016533,2]
[405349826,1771045832603,-6889.417526,0.00016595,2]
[405349827,1771045832613,-5357.41422488,0.00016621,2]
[405349828,1771045832622,-4222.16630542,0.00016621,2]
[405349829,1771045832631,-285.26881412,0.00016621,2]
[405349830,1771045832640,-1052.19570248,0.00016621,2]
[405349831,1771045832650,-151.0,0.0001663,2]
[405349832,1771045832659,-1000.0,0.00016632,2]
[405349833,1771045832668,-3838.55,0.00016633,2]
[405349834,1771045832678,-150.99,0.00016633,2]
[405349835,1771045832687,-9999.99,0.00016633,2]
[405349836,1771045832698,-9999.99,0.00016633,2]
[405349837,1771045832707,-9999.99,0.00016633,2]
[405349838,1771045832716,-9999.99,0.00016633,2]
[405349839,1771045832726,-999.99,0.00016633,2]
[405349840,1771045832736,-95998.9,0.00016633,2]
[405349841,1771045832746,-172.02467546,0.00016688,2]
[405349842,1771045832757,-151.0,0.00016695,2]
[405349843,1771045832767,-302.54513125,0.00016697,2]
[405349844,1771045832778,-500.0,0.00016697,2]
[405349845,1771045832787,-500.0,0.00016697,2]
[405349846,1771045832797,-500.0,0.00016697,2]
[405349847,1771045832807,-500.0,0.00016697,2]
[405349848,1771045832817,-500.0,0.00016697,2]
[405349849,1771045832826,-500.0,0.00016697,2]
[405349850,1771045832835,-500.0,0.00016697,2]
[405349851,1771045832847,-500.0,0.00016697,2]
[405349852,1771045832857,-500.0,0.00016697,2]
[405349853,1771045832867,-500.0,0.00016697,2]
[405349854,1771045832876,-500.0,0.00016697,2]
[405349855,1771045832890,-500.0,0.00016697,2]
[405349856,1771045832900,-500.0,0.00016697,2]
[405349857,1771045832910,-500.0,0.00016697,2]
[405349858,1771045832919,-500.0,0.00016697,2]
[405349859,1771045832929,-500.0,0.00016697,2]
[405349860,1771045832939,-500.0,0.00016697,2]
[405349861,1771045832950,-354.65875674,0.00016697,2]
[405349862,1771045832959,-500.0,0.00016697,2]
[405349863,1771045832969,-500.0,0.00016697,2]
[405349864,1771045832978,-500.0,0.00016697,2]
[405349865,1771045832987,-3904.0,0.00016698,2]
[405349866,1771045832997,-116845.53009059,0.00016698,2]
[405349867,1771045833009,-98705.47282267,0.00016698,2]
[405349869,1771045838429,-270.40931777,0.00016698,2]
[405349870,1771045838647,-434.70711677,0.00016698,2]
[405349871,1771045838658,-1068.04217604,0.00016698,2]
[405349874,1771045840734,-688.71976,0.00016698,2]
[405349887,1771046089920,-500.0,0.00016056,2]
[405349888,1771046089944,-2065.19,0.00016364,2]
[405349889,1771046089967,-169.76588547,0.00016364,2]
[405349890,1771046089990,-2536.6683,0.00016433,2]
[405349891,1771046090010,-1000.0,0.00016464,2]
[405349892,1771046090032,-2113.793,0.00016533,2]
[405349893,1771046090054,-4926.5975,0.00016533,2]
[405349894,1771046090076,-430.9571649,0.00016609,2]
[405349895,1771046090100,-642.82454239,0.00016633,2]
[405349896,1771046090120,-192.0,0.00016644,2]
[405349897,1771046090142,-101063.5586335,0.00016645,2]
[405349898,1771046090163,-150.99,0.00016645,2]
[405349899,1771046090182,-3631.0,0.00016645,2]
[405349900,1771046090202,-200.0,0.00016688,2]
[405349901,1771046090226,-151.0,0.00016688,2]
[405349902,1771046090247,-151.0,0.00016688,2]
[405349903,1771046090271,-151.0,0.00016688,2]
[405349904,1771046090293,-151.0,0.00016688,2]
[405349905,1771046090324,-181.46341101,0.00016688,2]
[405349906,1771046090348,-500.0,0.00016688,2]
[405349907,1771046090371,-500.0,0.00016688,2]
[405349908,1771046090392,-500.0,0.00016688,2]
[405349909,1771046090415,-500.0,0.00016688,2]
[405349910,1771046090435,-500.0,0.00016688,2]
[405349911,1771046090455,-500.0,0.00016688,2]
[405349912,1771046090476,-500.0,0.00016688,2]
[405349913,1771046090497,-521.39069403,0.00016688,2]
[405349914,1771046090517,-151.0,0.00016688,2]
[405349915,1771046090538,-151.0,0.00016688,2]
[405349916,1771046090558,-151.0,0.00016688,2]
[405349917,1771046090578,-500.0,0.00016688,2]
[405349918,1771046090598,-500.0,0.00016688,2]
[405349919,1771046090619,-151.0,0.00016688,2]
[405349920,1771046090639,-500.0,0.00016688,2]
[405349921,1771046090661,-151.0,0.00016688,2]
[405349922,1771046090681,-151.0,0.00016688,2]
[405349923,1771046090705,-151.0,0.00016688,2]
[405349924,1771046090729,-151.0,0.00016688,2]
[405349925,1771046090752,-500.0,0.00016688,2]
[405349926,1771046090771,-151.0,0.00016688,2]
[405349927,1771046090791,-500.0,0.00016688,2]
[405349928,1771046090810,-151.0,0.00016688,2]
[405349929,1771046090830,-500.0,0.00016688,2]
[405349930,1771046090850,-151.0,0.00016688,2]
[405349931,1771046090870,-500.0,0.00016688,2]
[405349932,1771046090890,-151.0,0.00016688,2]
[405349933,1771046090910,-500.0,0.00016688,2]
[405349934,1771046090930,-151.0,0.00016688,2]
[405349935,1771046090949,-527.2622972,0.00016688,2]
[405349936,1771046090969,-151.0,0.00016688,2]
[405349937,1771046090990,-151.0,0.00016688,2]
[405349938,1771046091010,-151.0,0.00016688,2]
[405349939,1771046091030,-151.0,0.00016688,2]
[405349940,1771046091051,-151.0,0.00016688,2]
[405349941,1771046091075,-153.80441819,0.00016688,2]
[405349942,1771046091098,-151.0,0.00016695,2]
[405349943,1771046091119,-500.0,0.00016698,2]
[405349944,1771046091143,-1755.94,0.00016698,2]
[405349945,1771046091165,-1755.94,0.00016698,2]
[405349946,1771046091186,-1755.94,0.00016698,2]
[405349947,1771046091207,-1755.94,0.00016698,2]
[405349948,1771046091229,-1755.94,0.00016698,2]
[405349949,1771046091250,-1755.94,0.00016698,2]
[405349950,1771046091272,-1755.94,0.00016698,2]
[405349951,1771046091294,-500.0,0.00016698,2]
[405349952,1771046091315,-500.0,0.00016698,2]
[405349953,1771046091337,-500.0,0.00016698,2]
[405349954,1771046091359,-500.0,0.00016698,2]
[405349955,1771046091381,-500.0,0.00016698,2]
[405349956,1771046091404,-500.0,0.00016698,2]
[405349957,1771046091427,-500.0,0.00016698,2]
[405349958,1771046091450,-333.95750962,0.00016709,2]
[405349959,1771046091476,-200.0,0.0001672,2]
[405349960,1771046091498,-6889.41752591,0.0001674,2]
[405349961,1771046091520,-166.66,0.00016757,2]
[405349962,1771046091541,-9494.5572,0.00016798,2]
[405349963,1771046091564,-6889.41752591,0.00016885,2]
[405349964,1771046091585,-173.43456991,0.0001689,2]
[405349965,1771046091606,-1001.79575194,0.00016897,2]
[405349966,1771046091626,-300.0,0.00016897,2]
[405349967,1771046091646,-505.994553,0.00016898,2]
[405349968,1771046091667,-500.0,0.00016898,2]
[405349969,1771046091690,-500.0,0.00016898,2]
[405349970,1771046091711,-500.0,0.00016898,2]
[405349971,1771046091732,-500.0,0.00016898,2]
[405349972,1771046091754,-301.6781247,0.00016898,2]
[405349973,1771046091776,-535.66713646,0.00016898,2]
[405349974,1771046091799,-500.0,0.00016898,2]
[405349975,1771046091820,-500.0,0.00016898,3]
[405349976,1771046091841,-500.0,0.00016898,4]
[405349977,1771046092058,-500.0,0.00016898,5]
[405349978,1771046092078,-500.0,0.00016898,6]
[405349979,1771046092101,-500.0,0.00016898,7]
[405349980,1771046092122,-930.542,0.00016899,2]